Workbook

Sheet Лист1
A1: № помещения | B1: tв (C°) | C1: № стояка | D1: № отоп. Прибора | E1: Qпр. ↑ (Вт) | F1: Qпр. ↓ (Вт) | G1: Qст | H1: β1 | I1: β2 | J1: Gст | K1: Gt | L1: α | M1: ∑Qпред. | N1: tср | O1: ∑Qф | P1: ∑Qр | Q1: n | R1: φ | S1: ψ | T1: Q/φ*ψ (Вт) | U1: A (м²) | V1: Количество секций
A2: 1 | B2: 2 | C2: 3 | D2: 4 | E2: 5 | F2: 6 | G2: 7 | H2: 8 | I2: 9 | J2: 10 | K2: 11 | L2: 12 | M2: 13 | N2: 14 | O2: 15 | P2: 16 | Q2: 17 | R2: 18 | S2: 19 | T2: 20 | U2: 21 | V2: 22
A3: 102 | B3: 20 | C3: 2 | D3: I | E3: 643.56 | F3: - | G3: =SUM(E3:E12) -> 6387.5 | H3: 1.06 | I3: 1.04 | J3: =(G3*H3*I3*3.6)/(25*4.2) -> 241.4256 | K3: 300 | L3: 1 | M3: =M4+E4 -> 5743.94 | N3: =95 -(((M3+(0.5/L3*E3))*H3*I3)/(4.2*J3)) -> 88.40539248 | O3: =(K3*4.2*25)/(3.6) -> 8750 | P3: =0.01*(O3+M3+((0.5/L3)*E3)) -> 148.1572 | Q3: 0.25 | R3: 1.07 | S3: - | T3: =E3/(R3) -> 601.4579439 | V3: 6
A4: 202 | B4: 20 | C4: 2 | D4: I | E4: 580.22 | F4: - | G4: =G3 -> 6387.5 | H4: 1.06 | I4: 1.04 | J4: 241.4256 | K4: 300 | L4: 1 | M4: 5163.72 | N4: =95 -(((M4+(0.5/L4*E4))*H4*I4)/(4.2*J4)) -> 89.07063492 | O4: 8750 | P4: 142.0383 | Q4: 0.25 | R4: 1.07 | S4: - | T4: =E4/(R4) -> 542.2616822 | V4: 5
A5: 302 | B5: 20 | C5: 2 | D5: I | E5: 590.2 | F5: - | G5: =G4 -> 6387.5 | H5: 1.06 | I5: 1.04 | J5: =(G5*H5*I5*3.6)/(25*4.2) -> 241.4256 | K5: 300 | L5: 1 | M5: 4573.52 | N5: =95 -(((M5+(0.5/L5*E5))*H5*I5)/(4.2*J5)) -> 89.70687106 | O5: =(K5*4.2*25)/(3.6) -> 8750 | P5: =0.01*(O5+M5+((0.5/L5)*E5)) -> 136.1862 | Q5: 0.25 | R5: 1.07 | S5: - | T5: =E5/(R5) -> 551.588785 | V5: 5
A6: 402 | B6: 20 | C6: 2 | D6: I | E6: 600.18 | F6: - | G6: 6387.5 | H6: 1.06 | I6: 1.04 | J6: 241.4256 | K6: 300 | L6: 1 | M6: 3973.34 | N6: 90.35395738 | O6: 8750 | P6: 130.2343 | Q6: 0.25 | R6: 1.07 | S6: - | T6: 560.9158879 | V6: 6
A7: 502 | B7: 20 | C7: 2 | D7: I | E7: 610.17 | F7: - | G7: 6387.5 | H7: 1.06 | I7: 1.04 | J7: 241.4256 | K7: 300 | L7: 1 | M7: 3363.17 | N7: =95 -(((M7+(0.5/L7*E7))*H7*I7)/(4.2*J7)) -> 91.01189933 | O7: 8750 | P7: =0.01*(O7+M7+((0.5/L7)*E7)) -> 124.18255 | Q7: 0.25 | R7: 1.07 | S7: - | T7: 570.2523364 | V7: 6
A8: 602 | B8: 20 | C8: 2 | D8: I | E8: 620.15 | F8: - | G8: 6387.5 | H8: 1.06 | I8: 1.04 | J8: 241.4256 | K8: 300 | L8: 1 | M8: 2743.02 | N8: 91.68069689 | O8: 8750 | P8: 118.03095 | Q8: 0.25 | R8: 1.07 | S8: - | T8: 579.5794393 | V8: 6
A9: 702 | B9: 20 | C9: 2 | D9: I | E9: 630.36 | F9: - | G9: 6387.5 | H9: 1.06 | I9: 1.04 | J9: 241.4256 | K9: 300 | L9: 1 | M9: 2112.66 | N9: 92.36046967 | O9: 8750 | P9: 111.7784 | Q9: 0.25 | R9: 1.07 | S9: - | T9: 589.1214953 | V9: 6
A10: 802 | B10: 20 | C10: 2 | D10: I | E10: 640.11 | F10: - | G10: 6387.5 | H10: 1.06 | I10: 1.04 | J10: 241.4256 | K10: 300 | L10: 1 | M10: =M11+E11 -> 1472.55 | N10: 93.05109263 | O10: 8750 | P10: 105.42605 | Q10: 0.25 | R10: 1.07 | S10: - | T10: 598.2336449 | V10: 6
A11: 902 | B11: 20 | C11: 2 | D11: I | E11: 645.1 | F11: - | G11: =G3 -> 6387.5 | H11: 1.06 | I11: 1.04 | J11: =(G11*H11*I11*3.6)/(25*4.2) -> 241.4256 | K11: 300 | L11: 1 | M11: =M12+E12 -> 827.45 | N11: 93.7497282 | O11: =(K11*4.2*25)/(3.6) -> 8750 | P11: 99 | Q11: 0.25 | R11: 1.07 | S11: - | T11: =E11/(R11) -> 602.8971963 | V11: 6
A12: 1002 | B12: 20 | C12: 2 | D12: I | E12: 827.45 | F12: - | G12: =G4 -> 6387.5 | H12: 1.06 | I12: 1.04 | J12: =(G12*H12*I12*3.6)/(25*4.2) -> 241.4256 | K12: 300 | L12: 1 | M12: =M13+E13 -> 0 | N12: =95 -(((M12+(0.5/L12*E12))*H12*I12)/(4.2*J12)) -> 94.55020113 | O12: 8750 | P12: 91.63725 | Q12: 0.25 | R12: 1.07 | S12: - | T12: =E12/(R12) -> 773.317757 | V12: =T12/110 -> 7.030161427
A14: При условии что отдача 1 секции чугунного радиатора ЧМ1-70-500 110Вт

Sheet Лист2

Sheet Лист3
